fUST/lending_fUST_20250612
["ID","MTS","AMOUNT","RATE_DAILY","PERIOD"]
[365510234,1749724239978,-559.62,0.00023287,4]
[365510235,1749724239987,-460.0,0.00023287,4]
[365510236,1749724239996,-460.0,0.00023287,4]
[365510238,1749724240007,-476.64,0.00023287,4]
[365510239,1749724240017,-466.8,0.00023287,4]
[365510241,1749724240026,-203.84510948,0.000233,8]
[365510243,1749724240035,-158.62919808,0.000233,2]
[365510245,1749724240044,-14999.9999576,0.00023313,7]
[365510247,1749724240053,-1500.837048,0.00023324,3]
[365510249,1749724240062,-160.0,0.00023324,3]
[365510251,1749724240071,-424.26423502,0.00023324,3]
[365510253,1749724240081,-229.7508257,0.00023324,3]
[365510256,1749724240092,-160.0,0.00023324,3]
[365510257,1749724240101,-7000.0,0.00023382,4]
[365510259,1749724240111,-204.56439,0.00023436,2]
[365510262,1749724240120,-1273.76,0.0002344,2]
[365510264,1749724240130,-151.0,0.00023442,6]
[365510267,1749724240139,-8000.0,0.00023488,4]
[365510269,1749724240150,-204.56438999,0.00023502,2]
[365510271,1749724240160,-706.73511828,0.00023536,2]
[365510273,1749724240172,-460.0,0.00023559,4]
[365510275,1749724240181,-460.0,0.0002356,4]
[365510277,1749724240190,-460.0,0.0002356,4]
[365510279,1749724240201,-460.0,0.0002356,4]
[365510281,1749724240210,-931.49,0.0002356,4]
[365510283,1749724240220,-580.0,0.0002356,4]
[365510285,1749724240229,-460.0,0.00023561,4]
[365510287,1749724240238,-559.62,0.00023561,4]
[365510289,1749724240247,-314.81142935,0.00023561,4]
[365510291,1749724240256,-460.0,0.00023561,4]
[365510293,1749724240266,-476.64,0.00023561,4]
[365510295,1749724240275,-466.8,0.00023561,4]
[365510296,1749724240284,-203.84510948,0.00023567,9]
[365510299,1749724240293,-204.56438999,0.00023568,2]
[365510300,1749724240302,-706.73511827,0.0002357,2]
[365510303,1749724240312,-706.73511828,0.00023573,2]
[365510304,1749724240321,-706.73511827,0.00023573,2]
[365510307,1749724240330,-706.73511827,0.00023597,2]
[365510309,1749724240340,-82528.18046703,0.000236,2]
[365510516,1749724245778,-349.0163726,0.00021095,4]
[365510517,1749724245789,-460.0,0.00021095,4]
[365510518,1749724245799,-460.0,0.00021369,4]
[365510519,1749724245809,-460.0,0.00021642,4]
[365510520,1749724245818,-460.0,0.00021643,4]
[365510521,1749724245827,-460.0,0.00021916,4]
[365510522,1749724245837,-409.90280394,0.0002219,4]
[365510530,1749724310913,219.259369,0.00013699,2]
[365510531,1749724311868,2408.0,0.00024658,120]
[365510645,1749725064064,500.0,0.00024658,120]
[365510646,1749725092311,297.2888834,0.0002465,120]
[365510652,1749725121149,500.0,0.00024658,120]
[365510655,1749725213760,2908.24903396,0.00024938,120]
[365510671,1749725280816,9073.31,0.000241,120]
[365510734,1749725432116,-189.16571,0.00019934,2]
[365510736,1749725432127,-300.0,0.00020027,2]
[365510738,1749725432139,-13236.33429,0.00020028,2]
[365510834,1749725438121,-2152.7829,0.00020028,2]
[365510840,1749725440261,-572.325,0.00020028,2]
[365510850,1749725445953,-536.62,0.00020028,2]
[365510851,1749725446007,-5484.99890576,0.00020028,2]
[365510855,1749725504113,208.2964,0.00013699,2]
[365510862,1749725609727,442.0836,0.00024938,60]
[365510891,1749726135607,2000.0,0.000244,120]
[365510892,1749726154992,2000.0,0.000245,120]
[365510894,1749726180566,2000.0,0.000246,120]
[365510897,1749726200915,959.35246546,0.00024939,120]
[365510899,1749726255835,2509.0,0.000246,120]
[365510902,1749726314715,155.0,0.00024939,60]
[365510928,1749726608188,202.0,0.00024658,120]
[365510940,1749726632350,-56759.40943355,0.00019,3]
[365510987,1749726641134,1938.67350919,0.00024941,120]
[365511012,1749726643344,-300.83,0.00019,3]
[365511014,1749726643356,-292.53039394,0.00019,3]
[365511016,1749726643757,197.88158,0.00013699,2]
[365511025,1749726646134,-22258.92158825,0.00019,3]
[365511026,1749726646144,-300.0,0.00019825,2]
[365511027,1749726646154,-24900.0,0.00019826,2]
[365511028,1749726646165,-180.509078,0.00019876,2]
[365511029,1749726646175,-1054.3117748,0.00019918,2]
[365511030,1749726646185,-293.0281551,0.0002,2]
[365511031,1749726646194,-2261.1213057,0.00020051,2]
[365511032,1749726646203,-197.88158,0.00020187,2]
[365511033,1749726646213,-158.62919808,0.000202,2]
[365511035,1749726646223,-401.69474819,0.000203,2]
[365511037,1749726646233,-1942.75217762,0.000203,2]
[365511039,1749726646243,-1187.0,0.000203,3]
[365511041,1749726646253,-1187.0,0.000203,3]
[365511042,1749726646262,-1190.0,0.000203,3]
[365511044,1749726646272,-1187.0,0.000203,3]
[365511045,1749726646281,-171.175,0.0002045,2]
[365511047,1749726646290,-314.2,0.00020609,2]
[365511049,1749726646299,-201.81596063,0.000209,4]
[365511051,1749726646308,-160.0,0.0002092,2]
[365511053,1749726646317,-424.26423502,0.0002092,2]
[365511054,1749726646326,-835.15920933,0.0002092,2]
[365511056,1749726646336,-229.7508257,0.0002092,2]
[365511058,1749726646346,-160.0,0.0002092,2]
[365511059,1749726646355,-160.0,0.0002092,2]
[365511060,1749726646364,-213.20212768,0.0002092,2]
[365511061,1749726646374,-844.79171733,0.0002092,2]
[365511062,1749726646383,-201.81596041,0.00021038,4]
[365511063,1749726646394,-460.0,0.00021095,4]
[365511064,1749726646404,-601.51963669,0.00021095,4]
[365511065,1749726646413,-460.0,0.00021095,4]
[365511066,1749726646422,-460.0,0.00021095,4]
[365511067,1749726646432,-460.0,0.00021095,2]
[365511068,1749726646441,-308.91929663,0.00021095,4]
[365511069,1749726646451,-460.0,0.00021095,4]
[365511070,1749726646460,-460.0,0.00021095,4]
[365511071,1749726646469,-460.0,0.00021095,4]
[365511072,1749726646479,-516.11,0.00021095,4]
[365511073,1749726646488,-460.0,0.00021095,4]
[365511074,1749726646498,-270.0,0.00021095,4]
[365511075,1749726646507,-460.0,0.00021095,4]
[365511076,1749726646517,-460.0,0.00021095,4]
[365511077,1749726646526,-460.0,0.00021095,4]
[365511078,1749726646535,-460.0,0.00021095,4]
[365511079,1749726646544,-310.83150042,0.00021095,4]
[365511080,1749726646554,-350.0,0.00021095,2]
[365511081,1749726646563,-460.0,0.00021095,4]
[365511082,1749726646572,-460.0,0.00021095,4]
[365511083,1749726646581,-460.0,0.00021095,4]
[365511084,1749726646591,-460.0,0.00021095,4]
[365511085,1749726646600,-460.0,0.00021095,4]
[365511086,1749726646609,-460.0,0.00021095,4]
[365511087,1749726646619,-586.27813742,0.00021095,4]
[365511088,1749726646628,-460.0,0.00021095,4]
[365511089,1749726646637,-460.0,0.00021095,4]
[365511090,1749726646646,-460.0,0.00021095,4]
[365511091,1749726646655,-460.0,0.00021095,4]
[365511092,1749726646665,-212.577545,0.00021095,4]
[365511093,1749726646674,-420.0,0.00021095,4]
[365511094,1749726646683,-460.0,0.00021095,4]
[365511095,1749726646692,-460.0,0.00021095,4]
[365511096,1749726646701,-460.0,0.00021095,4]
[365511097,1749726646711,-460.0,0.00021095,4]
[365511098,1749726646720,-787.07,0.00021095,4]
[365511099,1749726646729,-460.0,0.00021095,4]
[365511100,1749726646738,-460.0,0.00021095,4]
[365511101,1749726646751,-460.0,0.00021095,4]
[365511102,1749726646761,-460.0,0.00021095,4]
[365511103,1749726646770,-201.81596041,0.00021176,4]
[365511104,1749726646780,-201.81596041,0.00021314,5]
[365511105,1749726646790,-460.0,0.00021369,4]
[365511106,1749726646799,-483.34217275,0.00021369,4]
[365511107,1749726646809,-311.85,0.00021369,4]
[365511108,1749726646818,-460.0,0.00021369,2]
[365511109,1749726646828,-460.0,0.00021369,4]
[365511110,1749726646838,-460.0,0.00021369,4]
[365511111,1749726646848,-516.11,0.00021369,4]
[365511112,1749726646857,-460.0,0.00021369,4]
[365511113,1749726646866,-460.0,0.00021369,4]
[365511114,1749726646876,-460.0,0.00021369,4]
[365511115,1749726646885,-460.0,0.00021369,4]
[365511116,1749726646894,-460.0,0.00021369,4]
[365511117,1749726646904,-65.67298054,0.00021369,4]
[365511118,1749726646997,-394.32701946,0.00021369,4]
[365511119,1749726647007,-506.06047894,0.00021369,4]
[365511120,1749726647016,-460.0,0.00021369,4]
[365511121,1749726647027,-460.0,0.00021369,4]
[365511122,1749726647037,-460.0,0.00021369,4]
[365511123,1749726647046,-460.0,0.00021369,4]
[365511124,1749726647056,-460.0,0.00021369,4]
[365511125,1749726647066,-460.0,0.00021369,4]
[365511126,1749726647074,-460.0,0.00021369,4]
[365511127,1749726647084,-787.07,0.00021369,4]
[365511128,1749726647094,-460.0,0.00021369,4]
[365511129,1749726647104,-460.0,0.00021369,4]
[365511130,1749726647114,-201.81596041,0.00021452,5]
[365511131,1749726647124,-200.80144815,0.000215,2]
[365511132,1749726647134,-287.1928411,0.00021534,2]
[365511133,1749726647145,-571.3360607,0.00021534,2]
[365511134,1749726647155,-201.81596041,0.0002159,5]
[365511135,1749726647164,-628.39,0.00021591,2]
[365511136,1749726647174,-460.0,0.00021643,4]
[365511137,1749726647184,-460.0,0.00021643,2]
[365511138,1749726647194,-460.0,0.00021643,4]
[365511139,1749726647204,-516.11,0.00021643,4]
[365511140,1749726647214,-460.0,0.00021643,4]
[365511141,1749726647223,-460.0,0.00021643,4]
[365511142,1749726647233,-460.0,0.00021643,4]
[365511143,1749726647243,-460.0,0.00021643,4]
[365511144,1749726647252,-460.0,0.00021643,4]
[365511145,1749726647262,-460.0,0.00021643,4]
[365511146,1749726647272,-460.0,0.00021643,4]
[365511147,1749726647281,-460.0,0.00021643,4]
[365511148,1749726647291,-460.0,0.00021643,4]
[365511149,1749726647300,-460.0,0.00021643,4]
[365511150,1749726647309,-460.0,0.00021643,4]
[365511151,1749726647319,-787.07,0.00021643,4]
[365511152,1749726647330,-460.0,0.00021643,4]
[365511153,1749726647339,-460.0,0.00021643,4]
[365511154,1749726647349,-500.0,0.0002165,2]
[365511155,1749726647358,-201.81596041,0.00021728,5]
[365511156,1749726647367,-168.0,0.0002174,2]
[365511157,1749726647377,-201.81596041,0.00021866,6]
[365511158,1749726647386,-460.0,0.00021917,4]
[365511159,1749726647395,-400.0,0.00021917,4]
[365511160,1749726647404,-400.0,0.00021917,4]
[365511161,1749726647414,-460.0,0.00021917,2]
[365511162,1749726647423,-460.0,0.00021917,4]
[365511163,1749726647432,-516.11,0.00021917,4]
[365511164,1749726647442,-519.63,0.00021917,4]
[365511165,1749726647451,-460.0,0.00021917,4]
[365511166,1749726647460,-460.0,0.00021917,4]
[365511167,1749726647470,-420.73142935,0.00021917,4]
[365511168,1749726647481,-50.86271185,0.00021917,4]
[365511169,1749726659802,250.0,0.00024941,60]
[365511170,1749726684211,250.0,0.00024658,120]
[365511178,1749727108737,4737.0,0.00018,2]
[365511183,1749727300140,43213.07808331,0.00024938,60]
[365511189,1749727541717,10000.0,0.00024,120]
[365511190,1749727604500,1760.9703,0.000245,120]
[365511197,1749727671376,-181.13,0.00018,2]
[365511212,1749727731796,-289.34212964,0.00018,2]
[365511213,1749727734570,-371.76640356,0.00018,2]
[365511214,1749727736135,-282.02,0.00018,2]
[365511216,1749727738778,-311.21466435,0.00018,2]
[365511217,1749727740568,-297.75,0.00018,2]
[365511219,1749727742223,178.093422,0.00013699,2]
[365511220,1749727742328,-310.0,0.00018,2]
[365511221,1749727743906,-342.11648481,0.00018,2]
[365511222,1749727746593,-224.44067473,0.00018,2]
[365511224,1749727749852,-298.84282811,0.00018,2]
[365511225,1749727752511,-185.9680556,0.00018,2]
[365511230,1749727757772,-255.11607998,0.00018,2]
[365511232,1749727760004,-317.94056478,0.00018,2]
[365511239,1749727766784,-221.71357071,0.00018,2]
[365511240,1749727768988,-277.46332939,0.00018,2]
[365511241,1749727771385,-225.07,0.00018,2]
[365511242,1749727773891,-201.85554784,0.00018,2]
[365511243,1749727775845,-176.95264947,0.00018,2]
[365511244,1749727781237,-213.62075488,0.00018,2]
[365511245,1749727783110,-181.60870613,0.00018,2]
[365511246,1749727787072,-151.68429597,0.00018,2]
[365511249,1749727792614,-206.01501652,0.00018,2]
[365511250,1749727795975,-157.90957491,0.00018,2]
[365511251,1749727797839,-275.35372661,0.00018,2]
[365511253,1749727820586,-241.47574459,0.00018,2]
[365511254,1749727822721,-226.84863573,0.00018,2]
[365511306,1749727832254,-230.91,0.00018,2]
[365511315,1749727832760,-2001.8893124,0.00018,2]
[365511316,1749727832770,-20861.91882481,0.00018,2]
[365511317,1749727832779,-10072.96872045,0.00018,2]
[365511318,1749727832788,-167.25839616,0.00020087,2]
[365511319,1749727832797,-178.093422,0.00020187,2]
[365511320,1749727832807,-304.51,0.00020607,2]
[365511321,1749727832816,-171.176,0.00020611,2]
[365511322,1749727832827,-24900.0,0.00020833,2]
[365511323,1749727832837,-266.5070557,0.000209,4]
[365511324,1749727832846,-160.0,0.00020982,2]
[365511326,1749727832855,-835.15920933,0.00020982,2]
[365511327,1749727832865,-160.0,0.00020982,2]
[365511328,1749727832874,-424.26423502,0.00020982,2]
[365511329,1749727832883,-229.7508257,0.00020982,2]
[365511330,1749727832893,-1692.569649,0.00021,5]
[365511331,1749727832902,-266.5070556,0.00021038,4]
[365511332,1749727832912,-460.0,0.00021095,2]
[365511333,1749727832921,-460.0,0.00021095,4]
[365511334,1749727832931,-460.0,0.00021095,4]
[365511335,1749727832946,-460.0,0.00021095,4]
[365511336,1749727832955,-460.0,0.00021095,4]
[365511337,1749727832965,-460.0,0.00021095,4]
[365511338,1749727832974,-460.0,0.00021095,4]
[365511340,1749727832984,-460.0,0.00021095,4]
[365511342,1749727832993,-266.5070556,0.00021176,4]
[365511344,1749727833003,-168.0,0.00021204,2]
[365511346,1749727833012,-266.5070556,0.00021314,5]
[365511348,1749727833021,-460.0,0.00021369,2]
[365511350,1749727833031,-460.0,0.00021369,4]
[365511352,1749727833041,-460.0,0.00021369,4]
[365511354,1749727833051,-460.0,0.00021369,4]
[365511356,1749727833063,-460.0,0.00021369,4]
[365511358,1749727833073,-460.0,0.00021369,4]
[365511360,1749727833083,-460.0,0.00021369,4]
[365511362,1749727833095,-460.0,0.00021369,4]
[365511364,1749727833105,-168.0,0.00021441,2]
[365511366,1749727833116,-266.5070556,0.00021452,5]
[365511368,1749727833125,-563.20884235,0.00021569,2]
[365511371,1749727833141,-318.03956002,0.00021569,2]
[365511373,1749727833156,-536.5,0.00021569,2]
[365511375,1749727833168,-1608.25159763,0.00021569,2]
[365511377,1749727833179,-609.01,0.00021588,2]
[365511379,1749727833189,-266.5070556,0.0002159,5]
[365511381,1749727833198,-460.0,0.00021642,4]
[365511383,1749727833209,-460.0,0.00021642,4]
[365511384,1749727833219,-165.8684,0.00021642,4]
[365511386,1749727833229,-460.0,0.00021642,4]
[365511387,1749727833239,-460.0,0.00021643,2]
[365511388,1749727833249,-460.0,0.00021643,4]
[365511389,1749727833259,-460.0,0.00021643,4]
[365511390,1749727833268,-460.0,0.00021643,4]
[365511391,1749727833278,-460.0,0.00021643,4]
[365511392,1749727833288,-460.0,0.00021643,4]
[365511393,1749727833299,-460.0,0.00021643,4]
[365511394,1749727833309,-460.0,0.00021643,4]
[365511395,1749727833320,-160.0,0.00021692,3]
[365511396,1749727833332,-266.5070556,0.00021728,5]
[365511397,1749727833344,-153.7661172,0.00021808,2]
[365511398,1749727833355,-16.04330502,0.00021808,2]
[365511399,1749727833370,-136.95669498,0.00021808,2]
[365511400,1749727833380,-153.0,0.00021808,2]
[365511401,1749727833390,-65.47865262,0.00021866,6]
[365511449,1749727842852,-0.02275787,0.00021095,4]
[365511473,1749727843545,-459.97724213,0.00021095,4]
[365511474,1749727843555,-460.0,0.00021369,4]
[365511475,1749727843564,-460.0,0.00021643,4]
[365511476,1749727843574,-201.02840298,0.00021866,6]
[365511477,1749727843584,-460.0,0.00021916,4]
[365511478,1749727843594,-460.0,0.00021916,4]
[365511479,1749727843604,-460.0,0.00021916,4]
[365511480,1749727843614,-460.0,0.00021917,2]
[365511481,1749727843624,-460.0,0.00021917,4]
[365511483,1749727843633,-460.0,0.00021917,4]
[365511485,1749727843642,-484.12,0.00021917,4]
[365511486,1749727843652,-460.0,0.00021917,4]
[365511488,1749727843661,-460.0,0.00021917,4]
[365511489,1749727843670,-460.0,0.00021917,4]
[365511490,1749727843680,-460.0,0.00021917,4]
[365511491,1749727843690,-266.5070556,0.00022003,6]
[365511492,1749727843699,-460.0,0.00022026,4]
[365511493,1749727843708,-460.0,0.00022026,4]
[365511494,1749727843717,-713.16,0.00022026,4]
[365511495,1749727843726,-490.0,0.00022026,2]
[365511496,1749727843735,-168.0,0.00022104,2]
[365511497,1749727843744,-266.5070556,0.00022141,6]
[365511498,1749727843754,-490.0,0.0002218,2]
[365511499,1749727843764,-207.06799802,0.0002219,4]
[365511500,1749727843774,-460.0,0.0002219,4]
[365511501,1749727843783,-64.63224568,0.0002219,4]
[365511548,1749728620249,2000.0,0.00024658,120]
[365511549,1749728622921,2000.0,0.00024658,120]
[365511550,1749728625074,2000.0,0.00024658,120]
[365511551,1749728627237,2000.0,0.00024658,120]
[365511552,1749728629162,2000.0,0.00024658,120]
[365511553,1749728631382,2000.0,0.00024658,120]
[365511554,1749728633494,2000.0,0.00024658,120]
[365511557,1749728701458,999.99995859,0.00024658,120]
[365511601,1749728768205,160.284079,0.00013699,2]
[365511624,1749728919390,1000.0,0.00024658,120]
[365511699,1749729040771,-872.59464186,0.0002,10]
[365511700,1749729041285,-9827.40535814,0.00020087,2]
[365511701,1749729041306,-177.55464186,0.00020087,2]
[365511702,1749729041316,-160.284079,0.00020187,2]
[365511703,1749729041326,-295.84,0.00020687,2]
[365511704,1749729041337,-263.05001701,0.00021095,2]
[365511725,1749729238343,3036.3396261,0.00018,2]
[365511826,1749729784040,1523.0,0.00018,2]
[365511833,1749729990821,160.284079,0.00013699,2]
[365511915,1749730232838,-1800.63689471,0.000189,2]
[365511956,1749730233351,-1620.93241149,0.00018938,2]
[365511957,1749730233363,-801.1,0.00018938,2]
[365511958,1749730233375,-446.57285285,0.00018938,2]
[365511959,1749730233387,-2131.39473566,0.00018938,2]
[365511960,1749730233398,-173.00115965,0.000199,2]
[365511961,1749730233407,-1092.20958119,0.000199,2]
[365511962,1749730233417,-300.0,0.00019979,2]
[365511963,1749730233426,-999.35673327,0.0001998,2]
[365511964,1749730233439,-3981.46144156,0.0001998,2]
[365511965,1749730233452,-24900.0,0.0001998,2]
[365511966,1749730233462,-9887.36897123,0.0002,4]
[365511967,1749730233473,-1092.2095809,0.00020072,2]
[365511969,1749730233483,-168.0,0.00020206,2]
[365511971,1749730233493,-1092.2095809,0.00020245,2]
[365511972,1749730233503,-1092.2095809,0.00020417,3]
[365511974,1749730233512,-171.176,0.00020452,2]
[365511975,1749730233522,-1092.2095809,0.0002059,3]
[365511976,1749730233531,-348.74,0.00020624,2]
[365511977,1749730233542,-1092.2095809,0.00020762,3]
[365511978,1749730233551,-490.0,0.0002078,2]
[365511979,1749730233560,-490.0,0.00020802,2]
[365511980,1749730233570,-490.0,0.00020819,2]
[365511981,1749730233580,-1091.1586212,0.00020822,2]
[365511982,1749730233590,-11862.37599647,0.00020868,2]
[365511983,1749730233601,-844.79171733,0.00020869,2]
[365511984,1749730233611,-152.45109,0.00020872,2]
[365511985,1749730233620,-151.0,0.00020872,2]
[365511986,1749730233630,-151.0,0.00020872,2]
[365511987,1749730233639,-151.0,0.00020872,2]
[365511988,1749730233650,-151.0,0.00020872,2]
[365511989,1749730233659,-490.0,0.00020924,2]
[365511990,1749730233669,-1092.2095809,0.00020934,4]
[365511991,1749730233679,-160.284079,0.00020951,2]
[365511992,1749730233689,-490.0,0.0002101,2]
[365511993,1749730233699,-490.0,0.0002103,2]
[365511994,1749730233710,-490.0,0.0002108,2]
[365511995,1749730233721,-490.0,0.00021094,2]
[365511996,1749730233731,-460.0,0.00021095,4]
[365511997,1749730233741,-460.0,0.00021095,4]
[365511998,1749730233754,-440.0,0.00021095,4]
[365511999,1749730233765,-460.0,0.00021095,4]
[365512000,1749730233777,-460.0,0.00021095,4]
[365512001,1749730233787,-460.0,0.00021095,4]
[365512002,1749730233800,-460.0,0.00021095,4]
[365512003,1749730233809,-1092.2095809,0.00021107,4]
[365512004,1749730233819,-490.0,0.00021136,2]
[365512005,1749730233829,-460.0,0.00021169,4]
[365512006,1749730233839,-460.0,0.00021169,4]
[365512007,1749730233849,-460.0,0.00021169,2]
[365512008,1749730233859,-460.0,0.00021169,4]
[365512009,1749730233869,-460.0,0.00021169,4]
[365512010,1749730233878,-350.0,0.00021169,2]
[365512011,1749730233887,-460.0,0.00021169,4]
[365512012,1749730233898,-777.48,0.00021169,4]
[365512013,1749730233908,-460.0,0.00021169,4]
[365512014,1749730233918,-5000.0,0.00021231,2]
[365512015,1749730233928,-1688.0,0.00021231,2]
[365512016,1749730233938,-207.4,0.00021231,2]
[365512017,1749730233950,-151.0,0.00021232,2]
[365512018,1749730233960,-151.213556,0.00021232,2]
[365512019,1749730233971,-331.212048,0.00021232,2]
[365512020,1749730233982,-331.212048,0.00021232,2]
[365512021,1749730233992,-151.0,0.00021232,2]
[365512022,1749730234005,-151.0,0.00021232,2]
[365512023,1749730234014,-151.0,0.00021232,2]
[365512024,1749730234025,-190.814021,0.00021232,2]
[365512025,1749730234034,-324.269359,0.00021232,2]
[365512026,1749730234043,-324.269359,0.00021232,2]
[365512027,1749730234052,-151.0,0.00021232,2]
[365512028,1749730234061,-151.0,0.00021232,2]
[365512029,1749730234071,-1092.2095809,0.00021279,5]
[365512030,1749730234080,-884.586432,0.00021286,2]
[365512031,1749730234089,-490.0,0.00021334,2]
[365512032,1749730234099,-151.0,0.00021334,2]
[365512033,1749730234108,-151.0,0.00021334,2]
[365512034,1749730234118,-1347.48467866,0.00021352,2]
[365512035,1749730234128,-460.0,0.00021369,4]
[365512036,1749730234138,-460.0,0.00021369,4]
[365512037,1749730234147,-460.0,0.00021369,4]
[365512038,1749730234156,-460.0,0.00021369,4]
[365512039,1749730234166,-460.0,0.00021369,4]
[365512040,1749730234176,-460.0,0.00021369,4]
[365512041,1749730234185,-151.222108,0.00021409,2]
[365512042,1749730234194,-490.0,0.00021409,2]
[365512043,1749730234204,-224.0,0.0002142,2]
[365512044,1749730234213,-490.0,0.00021441,2]
[365512045,1749730234223,-543.87864249,0.00021443,4]
[365512046,1749730234233,-217.70149313,0.00021443,4]
[365512047,1749730234242,-460.0,0.00021443,2]
[365512048,1749730234253,-460.0,0.00021443,4]
[365512049,1749730234264,-372.72,0.00021443,4]
[365512050,1749730234274,-350.0,0.00021443,2]
[365512051,1749730234284,-777.48,0.00021443,4]
[365512052,1749730234293,-460.0,0.00021443,4]
[365512053,1749730234304,-1092.2095809,0.00021452,5]
[365512054,1749730234314,-151.0,0.00021452,2]
[365512055,1749730234324,-331.212048,0.00021452,2]
[365512056,1749730234333,-331.212048,0.00021452,2]
[365512057,1749730234343,-153.641648,0.00021452,2]
[365512058,1749730234352,-324.269359,0.00021452,2]
[365512059,1749730234361,-324.269359,0.00021452,2]
[365512060,1749730234371,-225.193162,0.00021452,2]
[365512061,1749730234381,-224.0,0.00021485,2]
[365512062,1749730234391,-500.0,0.0002155,2]
[365512063,1749730234400,-500.0,0.0002156,2]
[365512064,1749730234410,-500.0,0.0002156,2]
[365512065,1749730234421,-500.0,0.0002156,2]
[365512066,1749730234435,-500.0,0.0002156,2]
[365512067,1749730234444,-490.0,0.00021571,2]
[365512068,1749730234454,-697.48,0.00021606,2]
[365512069,1749730234464,-151.0,0.00021606,2]
[365512070,1749730234473,-153.717606,0.00021606,2]
[365512071,1749730234483,-224.0,0.00021606,2]
[365512072,1749730234495,-168.0,0.0002161,2]
[365512073,1749730234505,-1000.0,0.00021623,2]
[365512074,1749730234516,-1000.0,0.00021623,2]
[365512075,1749730234526,-1000.0,0.00021623,2]
[365512076,1749730234536,-1000.0,0.00021623,2]
[365512077,1749730234545,-1000.0,0.00021623,2]
[365512078,1749730234555,-1000.0,0.00021623,2]
[365512079,1749730234565,-1000.0,0.00021623,2]
[365512080,1749730234575,-1000.0,0.00021623,2]
[365512081,1749730234585,-1000.0,0.00021623,2]
[365512082,1749730234595,-1000.0,0.00021623,2]
[365512083,1749730234605,-597.83924358,0.00021623,2]
[365512084,1749730234615,-1092.2095809,0.00021624,5]
[365512085,1749730234624,-460.0,0.00021643,4]
[365512086,1749730234634,-170.35963407,0.00021643,4]
[365512087,1749730234643,-460.0,0.00021643,4]
[365512088,1749730234653,-460.0,0.00021643,4]
[365512089,1749730234663,-460.0,0.00021643,4]
[365512090,1749730234672,-460.0,0.00021643,4]
[365512091,1749730234682,-151.0,0.00021644,2]
[365512092,1749730234692,-151.0,0.00021644,2]
[365512093,1749730234701,-151.0,0.00021717,2]
[365512094,1749730234710,-196.94998299,0.00021717,2]
[365512095,1749730234719,-460.0,0.00021717,4]
[365512096,1749730234729,-350.0,0.00021717,2]
[365512097,1749730234739,-151.0,0.00021717,2]
[365512098,1749730234750,-151.0,0.00021717,2]
[365512099,1749730234760,-777.48,0.00021717,4]
[365512100,1749730234771,-460.0,0.00021717,4]
[365512101,1749730234780,-1775.006201,0.00021736,3]
[365512102,1749730234791,-151.0,0.00021736,2]
[365512103,1749730234800,-151.0,0.00021736,2]
[365512104,1749730234811,-420.0,0.00021755,2]
[365512105,1749730234821,-1347.48467864,0.00021764,2]
[365512106,1749730234830,-151.0,0.00021779,2]
[365512107,1749730234839,-331.212048,0.00021779,2]
[365512108,1749730234849,-331.212048,0.00021779,2]